Cogmind - Beta 12 @@@ ROGUE MODE // 2024.01.18 @ 21:34:50 Player: Luminiferous Result: Destroyed by P-80 Master with Gamma Rifle Performance ------------- Evolutions (8) 4000 Regions Visited (11) 2200 Robots Destroyed (92) 460 Value Destroyed (2577) 2577 Prototype IDs (11) 220 Alien Tech Used (0) 0 Bonus (396) 396 TOTAL SCORE: 9853 Bonus ------- High Alert Combat Kills 96 Aligned with FarCom 300 Cogmind --------- Core Integrity 0/1450 Matter 62/300 Energy 100/100 System Corruption 18% Temperature Cool (0) Movement Core (50) Location -2/Research Parts ------- > --- POWER (5) -------- (None) > --- PROPULSION (8) --- (None) > --- UTILITY (8) ------ Signal Interpreter > --- WEAPON (2) ------- (None) > --- INVENTORY (5) ---- Light Quantum Reactor Small Storage Unit Advanced Signal Interpreter Terrain Scan Processor System Restoration Module Peak State ------------ > --- POWER ------------ Improved Fusion Compressor Micro Antimatter Reactor Light Quantum Reactor > --- PROPULSION ------- VTOL Module Nuclear Pulse Thruster Nuclear Pulse Array Nuclear Pulse Array > --- UTILITY ---------- Medium Storage Unit Gravity Neutralizer Signal Interpreter ECM Suite Improved Medium Armor Plating Advanced Hacking Suite System Shield System Restoration Module > --- WEAPON ----------- Katana > --- INVENTORY -------- Small Storage Unit Advanced Weight Redist. System Signal Interpreter Advanced Signal Interpreter Impact Mace [Rating: 85] Favorites ----------- Power Light Deuterium Engine Engine Light Deuterium Engine Power Core Micro Nuclear Core Reactor Micro Antimatter Reactor Propulsion Cooled VTOL Module Leg VSS Leg Wheel Wheel Hover Unit Improved Airjet Flight Unit Cooled VTOL Module Utility Medium Storage Unit Device Advanced Weight Redist. System Storage Medium Storage Unit Processor Signal Interpreter Hackware System Shield Protection Improved Light Armor Plating Weapon Longsword +1 Energy Gun Medium Laser Ballistic Gun Enhanced Autogun Ballistic Cannon Flak Cannon Launcher Grenade Launcher Impact Weapon Impact Mace Slashing Weapon Longsword +1 Build | -11 -10 -10 -10 -9 -8 -7 -6 -5 -4 -3 -2 ------- Run | Jun Mat Min Exi Min Mat Fac Fac Fac Fac Res Res Slots Evolved 16 | . . . . . 4 2 2 2 2 2 2 Power 4 | . . . . . . 1 1 . 1 . 1 Propulsion 6 | . . . . . 1 1 1 . . 2 1 Utility 6 | . . . . . 3 . . 2 1 . . Weapon . | . . . . . . . . . . . . Parts Attached 185 | 6 9 9 2 4 50 35 2 45 8 10 5 Power 35 | 1 1 . . . 10 9 1 5 3 4 1 Engine 15 | 1 1 . . . 2 9 . 1 1 . . Core 17 | . . . . . 8 . 1 4 2 2 . Reactor 3 | . . . . . . . . . . 2 1 Propulsion 60 | 2 3 4 . . 13 15 1 17 2 3 . Treads . | . . . . . . . . . . . . Leg 11 | . . . . . 11 . . . . . . Wheel 8 | 2 3 2 . . 1 . . . . . . Hover 1 | . . . . . . 1 . . . . . Flight 40 | . . 2 . . 1 14 1 17 2 3 . Utility 51 | 1 3 2 1 1 11 7 . 17 2 2 4 Device 27 | . 2 2 . . 9 1 . 8 1 1 3 Storage 7 | 1 . . 1 . 1 2 . 1 1 . . Processor 4 | . 1 . . 1 1 1 . . . . . Hackware 4 | . . . . . . 3 . 1 . . . Protection 9 | . . . . . . . . 7 . 1 1 Artifact . | . . . . . . . . . . . . Weapon 39 | 2 2 3 1 3 16 4 . 6 1 1 . Energy Gun 8 | 1 2 1 . . 4 . . . . . . Energy Cannon . | . . . . . . . . . . . . Ballistic Gun 7 | 1 . . . . 6 . . . . . . Ballistic Cannon 3 | . . 1 . 2 . . . . . . . Launcher 8 | . . 1 . 1 . 2 . 4 . . . Special Weapon . | . . . . . . . . . . . . Impact Weapon 4 | . . . . . . 2 . 1 . 1 . Slashing Weapon 9 | . . . 1 . 6 . . 1 1 . . Piercing Weapon . | . . . . . . . . . . . . Special Melee Weapon . | . . . . . . . . . . . . Unidentified Prototypes 11 | . . . 1 . 3 3 . 2 . 1 1 Parts Lost 40 | . . . . 1 8 . . 13 4 2 12 Power 11 | . . . . . 2 . . 4 1 2 2 Propulsion 15 | . . . . . 3 . . 6 2 . 4 Utility 11 | . . . . 1 3 . . 2 . . 5 Weapon 3 | . . . . . . . . 1 1 . 1 Highest Loss Streak 12 | . . . . 1 2 . . 7 4 2 12 To Critical Strikes . | . . . . . . . . . . . . Average Slot Usage (%) 89 | . 95 100 100 99 90 97 100 90 71 68 55 Engine 8 | . 14 14 14 14 3 14 13 8 4 4 . Core 4 | . . . . . 5 . 6 7 10 8 . Leg 3 | . . . . . 17 . . . . . . Wheel 7 | . 28 27 28 28 7 . . . . . . Flight 14 | . . . . . . 29 33 28 19 18 14 Device 12 | . 10 14 14 9 20 9 6 11 9 5 8 Storage 8 | . 14 14 14 14 9 7 6 5 4 4 3 Processor 5 | . . . . 4 9 6 6 5 5 4 4 Hackware 6 | . . . . . . 12 13 10 10 9 7 Energy Gun 4 | . 27 9 . . 3 . . . . . . Ballistic Gun 1 | . . . . . 7 . . . . . . Launcher 1 | . . 13 14 8 . . . . . . . Impact Weapon 1 | . . . . . . 5 6 . . 1 . Slashing Weapon 5 | . . . 10 14 6 7 6 5 5 4 3 Naked Turns . | . . . . . . . . . . . . Heaviest Build 45 | 13 17 20 22 25 34 32 32 35 35 43 45 Greatest Support 54 | 20 26 26 26 26 54 42 34 36 39 45 48 Greatest Overweight (x) 2 | . . . . . 2 2 . 1 . 1 1 Average Overweight (x) . | . . . . . . . . . . . . Largest Inventory Capacity 10 | 8 8 8 10 10 10 10 10 10 10 10 10 Average Capacity 9 | 6 8 8 8 10 10 9 10 10 9 10 9 Most Carried 10 | 5 8 8 10 10 10 10 9 10 10 7 9 Average Carried 8 | 3 7 7 8 9 9 9 8 9 7 4 7 Final Capacity 10 | 8 8 8 10 10 10 10 10 10 10 10 5 Final Carried 10 | 4 8 8 10 9 10 10 9 4 6 5 5 Class Distribution -------------------- 48% | Hacker-Sprinter 28% | Mutant 6% | Scavenger-Mutant 4% | Scavenger-Assassin Dominant Class ---------------- Mutant | -10/Materials Mutant | -10/Mines Mutant | -10/Exiles Assassin | -9/Mines Mutant | -8/Materials Hacker-Sprinter | -7/Factory Hacker-Sprinter | -6/Factory Hacker-Sprinter | -5/Factory Scavenger-Sprinter | -4/Factory Hacker-Sprinter | -3/Research Hacker-Sprinter | -2/Research Resources | -11 -10 -10 -10 -9 -8 -7 -6 -5 -4 -3 -2 ----------- Run | Jun Mat Min Exi Min Mat Fac Fac Fac Fac Res Res Matter Collected 2716 | 228 92 55 . 149 914 362 . 401 202 301 12 Remotely . | . . . . . . . . . . . . Salvage Created 3264 | . 337 8 . 21 1123 536 . 768 202 192 77 Parts 202 | . 16 6 . 5 43 32 . 62 14 16 8 Haulers Intercepted 12 | . 1 . . . 5 5 . 1 . . . Recyclers Shooed 1 | . . . . . 1 . . . . . . Parts Field Recycled . | . . . . . . . . . . . . Retrieved Matter . | . . . . . . . . . . . . Parts Self-Destructed . | . . . . . . . . . . . . Prevented . | . . . . . . . . . . . . Kills | -11 -10 -10 -10 -9 -8 -7 -6 -5 -4 -3 -2 ------- Run | Jun Mat Min Exi Min Mat Fac Fac Fac Fac Res Res Combat Hostiles Destroyed 53 | . 5 3 . 5 12 6 . 20 1 . 1 Melee 14 | . . . . . . 3 . 9 1 . 1 Guns 16 | . 4 . . . 12 . . . . . . Cannons 3 | . . . . 3 . . . . . . . AOE 20 | . 1 3 . 2 . 3 . 11 . . . Classes Destroyed 14 | . 5 1 . 1 4 2 . 1 . . . Worker 6 | . . . . . 2 . . 1 . 3 . Builder 7 | . . . . . . 2 . 1 1 2 1 Tunneler 2 | . 1 . . . . . . . 1 . . Hauler 12 | . 1 . . . 5 5 . 1 . . . Recycler 6 | . . . . . 3 1 . . 1 1 . Operator 5 | . 1 . . . 3 . . 1 . . . Watcher 1 | . 1 . . . . . . . . . . Swarmer 16 | . . 3 . 3 . 3 . 7 . . . Cutter 5 | . . . . . . . . 5 . . . Grunt 15 | . 5 . . . 10 . . . . . . Sentry 1 | . . . . . 1 . . . . . . Demolisher 2 | . . . . 2 . . . . . . . Hunter 1 | . . . . . 1 . . . . . . Programmer 13 | . . . . . . 3 . 8 1 . 1 Best Kill Streak 7 | . 4 3 . 3 6 4 . 7 2 2 1 Combat Bots Only 7 | . 2 3 . 3 5 3 . 7 1 . 1 Max Kills in Single Turn 4 | . 2 2 . 2 1 3 . 4 1 1 1 Gunslinging . | . . . . . . . . . . . . Exploded 4 | . 1 2 . 2 . 2 . 4 . . . Melee 1 | . . . . . . 1 . 1 1 . 1 Uniques/NPCs Destroyed . | . . . . . . . . . . . . Combat | -11 -10 -10 -10 -9 -8 -7 -6 -5 -4 -3 -2 -------- Run | Jun Mat Min Exi Min Mat Fac Fac Fac Fac Res Res Damage Taken 6452 | . 184 26 . 199 1114 130 . 1819 353 153 2474 Core 2456 | . 72 . . 48 322 16 . 499 37 . 1462 Absorbed by Shields 73 | . . . . . . . . 30 43 . . Regen/Repaired (Parts) 430 | . . . . . 16 83 . 124 177 30 . Core Remaining (%) 79 | 100 . . . 52 41 97 100 50 96 100 . Volleys Fired 108 | . 26 2 . 5 65 2 . 8 . . . Largest 2 | . 2 1 . 1 2 1 . 1 . . . Hottest 95 | . 95 30 . 44 90 39 . 39 . . . Shots Fired 186 | . 48 2 . 5 121 2 . 8 . . . Gun 169 | . 48 . . . 121 . . . . . . Cannon 4 | . . . . 4 . . . . . . . Launcher 13 | . . 2 . 1 . 2 . 8 . . . Special . | . . . . . . . . . . . . Kinetic 85 | . . . . 4 81 . . . . . . Thermal 66 | . 26 . . . 40 . . . . . . Explosive 13 | . . 2 . 1 . 2 . 8 . . . Electromagnetic 22 | . 22 . . . . . . . . . . Robot Hit Streak 17 | . 8 . . 6 17 9 . 1 . . . Robot Miss Streak 4 | . 4 . . 3 4 1 . 1 . . . Penetration Max . | . . . . . . . . . . . . Secondary Targets 2 | . . . . . 2 . . . . . . Max Gunslinging Chain 1 | . . . . . 1 . . . . . . Shots Hit Robots 243 | . 32 . . 4 101 26 . 45 11 8 16 Core Hits 111 | . 16 2 . 9 33 12 . 29 2 5 3 Critical Kills . | . . . . . . . . . . . . Critical Parts Destroyed . | . . . . . . . . . . . . Critical Strikes 13 | . . . . . 5 1 . 3 2 . 2 Burn 2 | . . . . . 2 . . . . . . Sever 11 | . . . . . 3 1 . 3 2 . 2 Melee Attacks 479 | . . . . . 39 77 5 192 42 69 55 Impact 19 | . . . . . . 4 1 . . 14 . Slashing 460 | . . . . . 39 73 4 192 42 55 55 Piercing . | . . . . . . . . . . . . Sneak Attacks 34 | . . . . . 11 7 . 3 3 7 3 Combat Hostiles . | . . . . . . . . . . . . Follow-up Attacks . | . . . . . . . . . . . . Damage Inflicted 10341 | . 502 156 . 232 2818 1818 . 2990 684 506 635 Guns 1835 | . 464 . . . 1371 . . . . . . Cannons 82 | . . . . 82 . . . . . . . Explosions 1585 | . 38 156 . 150 . 331 . 910 . . . Melee 6839 | . . . . . 1447 1487 . 2080 684 506 635 Ramming . | . . . . . . . . . . . . Kinetic 1004 | . . . . 82 922 . . . . . . Thermal 688 | . 239 . . . 449 . . . . . . Explosive 1547 | . . 156 . 150 . 331 . 910 . . . Electromagnetic 263 | . 263 . . . . . . . . . . Impact . | . . . . . . . . . . . . Slashing 6839 | . . . . . 1447 1487 . 2080 684 506 635 Piercing . | . . . . . . . . . . . . Highest Corruption 18 | . . . . . . . . 8 2 1 18 Average Corruption 6 | . . . . . . . . 6 1 1 8 Corruption Purged 2 | . . . . . . . . . 1 1 . Corruption Blocked 8 | . . . . . . . . 8 . . . Effects 81 | . . . . . . . . 76 . 1 4 Message Errors 19 | . . . . . . . . 17 . 1 1 Matter Fused 19 | . . . . . . . . 19 . . . Heat Flow Errors 11 | . . . . . . . . 11 . . . Energy Discharges 4 | . . . . . . . . 4 . . . Parts Rejected 2 | . . . . . . . . 1 . . 1 Parts Fused 2 | . . . . . . . . 2 . . . Data Loss (minor) 13 | . . . . . . . . 11 . . 2 Data Loss (major) 6 | . . . . . . . . 6 . . . Alerts 5 | . . . . . . . . 5 . . . Overload Shots . | . . . . . . . . . . . . Overflow Damage 1241 | . . 12 . 6 461 240 . 186 154 52 130 Projectiles . | . . . . . . . . . . . . Explosions 100 | . . 12 . 6 . 12 . 70 . . . Melee 1141 | . . . . . 461 228 . 116 154 52 130 Knockbacks 1 | . . . . 1 . . . . . . . Impact . | . . . . . . . . . . . . Kinetic 1 | . . . . 1 . . . . . . . Secondary . | . . . . . . . . . . . . Self-Inflicted Damage 337 | . 26 . . 29 . 53 . 229 . . . Shots 9 | . 1 . . 1 . 2 . 5 . . . Rammed . | . . . . . . . . . . . . Targets Rammed . | . . . . . . . . . . . . Kicked . | . . . . . . . . . . . . Crushed . | . . . . . . . . . . . . Highest Temperature 559 | . 210 . . 12 559 . 55 261 . 392 45 Average Temperature 118 | . 70 . . 6 169 . 23 70 . 207 19 Received Heat Transfer 657 | . 108 . . . 477 . . 45 . 18 9 Effects 25 | . . . . . 12 . . . . 13 . Shutdowns 3 | . . . . . 1 . . . . 2 . Energy Bleed 1 | . . . . . 1 . . . . . . Interference 9 | . . . . . . . . . . 9 . Matter Decay 4 | . . . . . 3 . . . . 1 . Short Circuit 2 | . . . . . 1 . . . . 1 . Damage (minor) 1 | . . . . . 1 . . . . . . Damage (major) 4 | . . . . . 4 . . . . . . Damage (core) 1 | . . . . . 1 . . . . . . Siege Activations . | . . . . . . . . . . . . Robots Corrupted . | . . . . . . . . . . . . Combat Hostiles . | . . . . . . . . . . . . Parts Fried 1 | . 1 . . . . . . . . . . Impact Corruptions . | . . . . . . . . . . . . Robots Melted . | . . . . . . . . . . . . Combat Hostiles . | . . . . . . . . . . . . Parts Melted 4 | . . . . . 3 . . 1 . . . Heat Transferred 1826 | . 642 . . . 1184 . . . . . . Parts Sabotaged . | . . . . . . . . . . . . Parts Stolen . | . . . . . . . . . . . . Parts Stripped . | . . . . . . . . . . . . Power Chain Reactions 1 | . 1 . . . . . . . . . . Missiles Intercepted . | . . . . . . . . . . . . Alert | -11 -10 -10 -10 -9 -8 -7 -6 -5 -4 -3 -2 ------- Run | Jun Mat Min Exi Min Mat Fac Fac Fac Fac Res Res Peak Influence 863 | . 146 100 . 153 141 143 44 863 610 296 140 Initial 422 | . . 24 . . 59 12 40 21 422 210 90 Average 100 | . 30 70 . 116 35 60 41 157 508 213 66 Maximum Alert Level 3 | . . . . . . . . 3 2 1 . Low Security (%) 89 | 100 100 100 . 100 100 100 100 85 . 40 100 Level 1 4 | . . . . . . . . 4 . 59 . Level 2 4 | . . . . . . . . 5 100 . . Level 3 1 | . . . . . . . . 4 . . . Level 4 . | . . . . . . . . . . . . Level 5 . | . . . . . . . . . . . . High Security . | . . . . . . . . . . . . Max Security . | . . . . . . . . . . . . Squads Dispatched 47 | . 2 1 . . 7 8 . 23 3 1 2 Investigation 16 | . 1 1 . . 3 3 . 5 2 1 . Extermination 10 | . . . . . . 3 . 4 1 . 2 Reinforcement 16 | . 1 . . . 3 2 . 10 . . . Assault 2 | . . . . . . . . 2 . . . Garrison 3 | . . . . . 1 . . 2 . . . Intercept . | . . . . . . . . . . . . Searches Triggered . | . . . . . . . . . . . . Construction Impeded . | . . . . . . . . . . . . Haulers Reinforced . | . . . . . . . . . . . . Active Scanning Responses . | . . . . . . . . . . . . Cargo Convoy Interrupts 1 | . . . . . . . . 1 . . . Stealth | -11 -10 -10 -10 -9 -8 -7 -6 -5 -4 -3 -2 --------- Run | Jun Mat Min Exi Min Mat Fac Fac Fac Fac Res Res Distress Signals 4 | . 1 . . . 1 . . 2 . . . Communications Jammed . | . . . . . . . . . . . . Distress Signals . | . . . . . . . . . . . . Times Spotted 112 | . 11 3 . 4 23 10 . 48 7 1 5 Peak Tracking Total 10 | . 3 3 . 2 4 3 . 10 3 1 4 Tactical Retreats 19 | . 1 . . 1 4 3 . 10 . . . Traps | -11 -10 -10 -10 -9 -8 -7 -6 -5 -4 -3 -2 ------- Run | Jun Mat Min Exi Min Mat Fac Fac Fac Fac Res Res Traps Triggered 10 | . 1 . . . 1 2 . 4 1 1 . Indirectly . | . . . . . . . . . . . . Trap Hack Attempts . | . . . . . . . . . . . . Triggered . | . . . . . . . . . . . . Disarmed . | . . . . . . . . . . . . Reprogrammed . | . . . . . . . . . . . . Reused . | . . . . . . . . . . . . Traps Extracted . | . . . . . . . . . . . . Installed . | . . . . . . . . . . . . Triggered 1 | . . . . . . . . 1 . . . Machines | -11 -10 -10 -10 -9 -8 -7 -6 -5 -4 -3 -2 ---------- Run | Jun Mat Min Exi Min Mat Fac Fac Fac Fac Res Res Machines Disabled 8 | . 1 . . . 1 . . 5 1 . . Max in Single Turn 2 | . 1 . . . 1 . . 2 1 . . Garrison Access 4 | . . . . . . 1 . 2 . 1 . Machines Repaired . | . . . . . . . . . . . . Machines Sabotaged . | . . . . . . . . . . . . Overloaded Fab Kills . | . . . . . . . . . . . . Hacking | -11 -10 -10 -10 -9 -8 -7 -6 -5 -4 -3 -2 --------- Run | Jun Mat Min Exi Min Mat Fac Fac Fac Fac Res Res Machines Accessed 48 | . 2 1 . . 5 12 . 17 5 6 . Terminals 27 | . 2 . . . 3 6 . 9 3 4 . Fabricators 2 | . . . . . . 1 . 1 . . . Repair Stations 9 | . . . . . 1 2 . 4 1 1 . Recycling Units . | . . . . . . . . . . . . Scanalyzers 4 | . . . . . 1 1 . 1 1 . . Garrison Access 5 | . . . . . . 2 . 2 . 1 . Total Hacks 184 | . 11 1 . . 26 35 . 63 27 21 . Successful 100 | . 6 1 . . 17 20 . 29 14 13 . Failed 84 | . 5 . . . 9 15 . 34 13 8 . Catastrophic 18 | . 1 . . . . 7 . 6 3 1 . Database Lockouts . | . . . . . . . . . . . . Manual 107 | . 12 . 1 . 16 19 . 25 21 13 . Terminals 110 | . 11 . . . 16 18 . 30 21 14 . Fabricators 5 | . . . . . . 2 . 3 . . . Repair Stations 44 | . . . . . 2 9 . 23 4 6 . Recycling Units . | . . . . . . . . . . . . Scanalyzers 16 | . . . . . 8 2 . 4 2 . . Garrison Access 8 | . . . . . . 4 . 3 . 1 . Terminal Hacks 27 | . 4 1 . . 5 3 . 5 5 4 . Record 4 | . . . . . . 1 . 3 . . . Part Schematic 2 | . . . . . . 1 . 1 . . . Robot Analysis 1 | . . . . . . 1 . . . . . Open Door 1 | . . 1 . . . . . . . . . Open DSF 1 | . . . . . . . . 1 . . . Level Access Points 2 | . . . . . . . . . 1 1 . Emergency Access Points 1 | . . . . . . . . . . 1 . Terminal Index 4 | . 1 . . . 1 . . . 1 1 . Fabricator Index 2 | . 1 . . . . . . . 1 . . Repair Station Index 3 | . . . . . 1 . . . 1 1 . Recycling Unit Index 1 | . . . . . . . . . 1 . . Locate Traps 3 | . 1 . . . 2 . . . . . . Hauler Manifests 2 | . 1 . . . 1 . . . . . . Fabricator Hacks 4 | . . . . . . 2 . 2 . . . Load Schematic 2 | . . . . . . 1 . 1 . . . Build 2 | . . . . . . 1 . 1 . . . Repair Station Hacks 28 | . . . . . 2 8 . 10 4 4 . Scan Component 16 | . . . . . 1 4 . 7 2 2 . Repair 12 | . . . . . 1 4 . 3 2 2 . Recycling Unit Hacks . | . . . . . . . . . . . . Scanalyzer 14 | . . . . . 6 2 . 4 2 . . Insert Component 7 | . . . . . 3 1 . 2 1 . . Analyze 7 | . . . . . 3 1 . 2 1 . . Garrison Access Hacks 4 | . . . . . . 1 . 2 . 1 . Seal Access 4 | . . . . . . 1 . 2 . 1 . Unauthorized Hacks 22 | . 2 . . . 3 4 . 6 3 4 . Terminals 22 | . 2 . . . 3 4 . 6 3 4 . Assimilate 2 | . . . . . . . . 2 . . . Botnet 20 | . 2 . . . 3 4 . 4 3 4 . Fabricators . | . . . . . . . . . . . . Repair Stations . | . . . . . . . . . . . . Recycling Units . | . . . . . . . . . . . . Scanalyzers . | . . . . . . . . . . . . Garrison Access . | . . . . . . . . . . . . Data Cores Recovered 1 | . . . . . . . . 1 . . . Used . | . . . . . . . . . . . . Hacking Detections 37 | . 2 . . . 4 9 . 14 5 3 . Full Trace Events 12 | . . . . . 3 1 . 5 2 1 . Feedback Events 1 | . . . . . . . . . . 1 . Corruption 1 | . . . . . . . . . . 1 . Feedback Blocked . | . . . . . . . . . . . . Robot Schematics Acquired . | . . . . . . . . . . . . Robots Built . | . . . . . . . . . . . . Authchips . | . . . . . . . . . . . . Time . | . . . . . . . . . . . . Total Robot Build Rating . | . . . . . . . . . . . . Part Schematics Acquired 7 | . . . . . 2 2 . 2 1 . . Parts Built 3 | . . . . . . 2 . 1 . . . Authchips 1 | . . . . . . 1 . . . . . Time 185 | . . . . . . 51 . 134 . . . Total Part Build Rating 6 | . . . . . . 2 . 4 . . . Parts Repaired 12 | . . . . . 1 4 . 3 2 2 . Time 426 | . . . . . 26 164 . 143 58 35 . Parts Recycled . | . . . . . . . . . . . . Recycled Matter . | . . . . . . . . . . . . Retrieved Matter . | . . . . . . . . . . . . Retrieved Components . | . . . . . . . . . . . . Parts Scanalyzed 7 | . . . . . 3 1 . 2 1 . . Part Schematics Acquired 5 | . . . . . 2 1 . 1 1 . . Parts Damaged . | . . . . . . . . . . . . Bothacking | -11 -10 -10 -10 -9 -8 -7 -6 -5 -4 -3 -2 ------------ Run | Jun Mat Min Exi Min Mat Fac Fac Fac Fac Res Res Used RIF Installer . | . . . . . . . . . . . . Robots Hacked . | . . . . . . . . . . . . Non-combat . | . . . . . . . . . . . . Combat . | . . . . . . . . . . . . Robot Hacks Applied . | . . . . . . . . . . . . Relay Couplers Released 3 | . . . . . . . . 3 . . . Programmers 3 | . . . . . . . . 3 . . . Fabnet Peak Effective % . | . . . . . . . . . . . . Robots Rewired . | . . . . . . . . . . . . Allies Hacked . | . . . . . . . . . . . . Hacks Repelled . | . . . . . . . . . . . . Allies | -11 -10 -10 -10 -9 -8 -7 -6 -5 -4 -3 -2 -------- Run | Jun Mat Min Exi Min Mat Fac Fac Fac Fac Res Res Total Allies 3 | . . . . 2 . . . 1 . . . Largest Group 2 | . . . . 2 2 . . 1 . . . Highest-Rated Group 46 | . . . . 46 46 . . 26 . . . Highest-Rated Ally 31 | . . . . 31 31 . . 26 . . . Total Orders . | . . . . . . . . . . . . Ally Attacks 8 | . . . . . 8 . . . . . . Total Damage 108 | . . . . . 108 . . . . . . Kills . | . . . . . . . . . . . . Allies Corrupted . | . . . . . . . . . . . . Allies Melted . | . . . . . . . . . . . . Intel | -11 -10 -10 -10 -9 -8 -7 -6 -5 -4 -3 -2 ------- Run | Jun Mat Min Exi Min Mat Fac Fac Fac Fac Res Res Robot Analysis Total 1 | . . . . . . 1 . . . . . Derelict Logs Recovered 2 | . . 2 . . . . . . . . . Drone Launches . | . . . . . . . . . . . . Drone Recoveries . | . . . . . . . . . . . . Exploration | -11 -10 -10 -10 -9 -8 -7 -6 -5 -4 -3 -2 ------------- Run | Jun Mat Min Exi Min Mat Fac Fac Fac Fac Res Res Turns Passed 13242 | 50 1614 524 434 197 2897 2281 48 3330 423 667 777 Spaces Moved 11572 | 45 470 449 477 198 1421 2525 152 3846 640 716 633 Core 10 | 9 . . . . . 1 . . . . . Treads . | . . . . . . . . . . . . Legs 1214 | . . . . . 1189 25 . . . . . Wheels 1862 | 36 470 449 477 198 232 . . . . . . Hover . | . . . . . . . . . . . . Flight 8486 | . . . . . . 2499 152 3846 640 716 633 Fastest Speed 23 | 50 80 90 90 90 90 26 24 23 27 28 29 Average Speed 44 | 74 80 90 90 90 105 28 24 24 27 29 29 Slowest Speed 260 | 80 90 90 90 90 260 150 24 96 32 109 112 Overloaded Moves . | . . . . . . . . . . . . Propulsion Burnouts . | . . . . . . . . . . . . Robots Hopped 10 | . . . . . . 1 . 8 . 1 . Cave-ins Triggered . | . . . . . . . . . . . . Exploration Rate (%) 33 | 3 46 47 72 40 53 38 3 60 13 14 8 Regions Visited 11 Branch Regions 3 Pre-discovered Areas . | . . . . . . . . . . . . Known Exits Taken 5 | . . . . . . 1 1 1 1 1 . Unknown Exits Taken 6 | 1 1 1 1 1 1 . . . . . . Scrap Searched 2 | . . 1 . 1 . . . . . . . Spaces Dug 339 | . . . . . 20 46 4 173 25 46 25 Terrain Destroyed 437 | . 2 8 . 13 20 68 4 226 25 46 25 Melee 310 | . . . . . 20 46 4 144 25 46 25 Projectile . | . . . . . . . . . . . . AOE 127 | . 2 8 . 13 . 22 . 82 . . . Terrain Rammed . | . . . . . . . . . . . . Walls Destroyed . | . . . . . . . . . . . . Machines Disabled . | . . . . . . . . . . . . Actions | -11 -10 -10 -10 -9 -8 -7 -6 -5 -4 -3 -2 --------- Run | Jun Mat Min Exi Min Mat Fac Fac Fac Fac Res Res Total 18905 | 60 1661 566 482 210 2684 4015 158 6012 843 1072 1142 Wait 6332 | 3 1131 94 . 2 1066 1336 . 1855 132 271 442 Move 11542 | 44 469 448 476 197 1420 2522 151 3830 639 713 633 Hop 9 | . . . . . . 1 . 7 . 1 . Pick Up 99 | 7 13 5 2 1 16 17 1 15 12 5 5 Fast Attach 56 | 3 2 3 1 . 20 15 . 11 1 . . Attach 66 | 3 . . . 1 7 8 2 25 7 10 3 Detach 19 | . . . . . 1 2 . 9 1 4 2 Swap 63 | . 7 6 1 3 23 12 . 9 . . 2 Drop 100 | . 13 8 2 1 27 27 . 20 . 2 . Fire 108 | . 26 2 . 5 65 2 . 8 . . . Melee 471 | . . . . . 39 73 4 192 42 66 55 Ram . | . . . . . . . . . . . . Kick . | . . . . . . . . . . . . Crush . | . . . . . . . . . . . . Escape Stasis 40 | . . . . . . . . 31 9 . . Rewire . | . . . . . . . . . . . . Trap . | . . . . . . . . . . . . Miscellaneous . | . . . . . . . . . . . . Route ------- -11/Junkyard -10/Materials (discovered 2 exits: [*Mat] / *Min) -10/Mines -10/Exiles -9/Mines -8/Materials -7/Factory (discovered 2 exits: *Fac / *Low) -6/Factory -5/Factory (discovered 2 exits: *Fac / [*Upp]) -4/Factory (discovered 5 exits: *Res x4 / *Ext) -3/Research (discovered 3 exits: *Res x3) -2/Research History --------- Turn | Location | Event 19 | -11/Junkyard | Discovered new exit (range 16) 51 | -11/Junkyard | Entered Materials 302 | -10/Materials | Build established: Mutant 430 | -10/Materials | Discovered new exit (range 16) 1604 | -10/Materials | Discovered new exit (range 16) 1665 | -10/Materials | Entered Mines 1833 | -10/Mines | Learned Materials non-interactive machine intel 1851 | -10/Mines | Deemed a non-threat by the Exiles lab entrance 1852 | -10/Mines | Discovered new exit (range 5) 1915 | -10/Mines | Learned Materials terminal intel 1969 | -10/Mines | Met a Derelict shopkeep closing up shop 2189 | -10/Mines | Entered Exiles 2212 | -10/Exiles | Met 8R-AWN 2228 | -10/Exiles | Met EX-HEX 2258 | -10/Exiles | Met EX-BIN 2269 | -10/Exiles | Aligned with FarCom system 2270 | -10/Exiles | Given EX-Vault access code 2294 | -10/Exiles | Opened EX-Vault 2302 | -10/Exiles | Found Prototype Slashing Weapon 2302 | -10/Exiles | Identified Longsword +1 2324 | -10/Exiles | Warned to stay clear of 0b10 Research branches 2353 | -10/Exiles | Met EX-DEC 2616 | -10/Exiles | Discovered new exit (range 10) 2623 | -10/Exiles | Left Exiles lab with Longsword +1 2623 | -10/Exiles | Entered Mines 2672 | -9/Mines | Assembled infested the area 2806 | -9/Mines | Discovered new exit (range 15) 2820 | -9/Mines | Entered Materials 2820 | -8/Materials | Accompanied by 2 allies 2820 | -8/Materials | Evolved 4 slots: Propulsion x1, Utility x3 2821 | -8/Materials | Loaded intel: 40 non-interactive machine locations 2822 | -8/Materials | Loaded intel: 12 terminal locations 2825 | -8/Materials | Led the pair of lost Derelicts to an unsafe place 3742 | -8/Materials | Repaired Flight Unit 3851 | -8/Materials | Build established: Scavenger-Mutant 4588 | -8/Materials | Core integrity fell below 50% 4673 | -8/Materials | Discovered new exit (range 3) 4761 | -8/Materials | Garrison activated, responded to threat 5343 | -8/Materials | Build established: Scavenger-Assassin 5717 | -8/Materials | Entered Factory 5717 | -7/Factory | Evolved 2 slots: Power x1, Propulsion x1 6140 | -7/Factory | Discovered new exit (range 11) 6364 | -7/Factory | Build established: Hacker-Sprinter 6763 | -7/Factory | Fabricated Signal Interpreter (x2) 6800 | -7/Factory | Identified exit to Lower Caves 7067 | -7/Factory | Repaired Lgt. Deuterium Engine 7469 | -7/Factory | Repaired Lgt. Deuterium Engine 7515 | -7/Factory | Repaired Hvy. Missile Launcher 7586 | -7/Factory | Repaired Cld. VTOL Module 7997 | -7/Factory | Discovered new exit (range 6) 7998 | -7/Factory | Identified exit to Factory 7998 | -7/Factory | Entered another Factory area 7998 | -6/Factory | Evolved 2 slots: Power x1, Propulsion x1 8043 | -6/Factory | Discovered new exit (range 12) 8046 | -6/Factory | Identified exit to Factory 8046 | -6/Factory | Entered another Factory area 8046 | -5/Factory | Evolved 2 slots: Utility x2 8306 | -5/Factory | Fabricated Cld. VTOL Module? 8696 | -5/Factory | Repaired Cld. VTOL Module 8815 | -5/Factory | Cargo convoy interrupted 9053 | -5/Factory | Repaired Cld. VTOL Module 9093 | -5/Factory | Repaired Lgt. Deuterium Engine 9173 | -5/Factory | Found Unknown Protection 9174 | -5/Factory | Identified Hvy. Insulated Plating 11098 | -5/Factory | Discovered new exit (range 14) 11220 | -5/Factory | Garrison activated, responded to threat 11251 | -5/Factory | Destroyed 7 combat bots 11346 | -5/Factory | First assault squad dispatched 11369 | -5/Factory | Discovered new exit (range 15) 11376 | -5/Factory | Identified exit to Factory 11376 | -5/Factory | Entered another Factory area 11376 | -4/Factory | Evolved 2 slots: Power x1, Utility x1 11404 | -4/Factory | Lost 7 parts (3p3n1w) 11418 | -4/Factory | Identified exit to Research 11553 | -4/Factory | Repaired Med. Storage Unit 11631 | -4/Factory | Repaired VTOL Module 11687 | -4/Factory | Discovered new exit (range 16) 11691 | -4/Factory | Identified exit to Extension 11799 | -4/Factory | Entered Research 11799 | -3/Research | Evolved 2 slots: Propulsion x2 11828 | -3/Research | Lost 4 parts (1p2n1w) 11951 | -3/Research | Repaired VTOL Module 11972 | -3/Research | Repaired Adv. Weight Redist. System 11982 | -3/Research | Found Prototype Device 11983 | -3/Research | Identified Exp. Thermal Shield 12432 | -3/Research | Identified exit to Research 12466 | -3/Research | Entered another Research area 12466 | -2/Research | Evolved 2 slots: Power x1, Propulsion x1 13193 | -2/Research | System corruption reached 10% 13208 | -2/Research | Core integrity fell below 50% 13232 | -2/Research | Core integrity fell below 20% 13243 | -2/Research | Destroyed by P-80 Master with Gamma Rifle Last Messages --------------- 13162_ R-10 Processor collects Sml. Battery. 13166_ R-10 Processor collects Adv. Heat Sink. 13168_ Lgt. Quantum Reactor destroyed. 13169_ System corrupted: Component data lost. 13169_ R-10 Processor collects Adv. Target Analyzer. 13173_ R-10 Processor collects Gravity Neutralizer. 13176_ R-10 Processor collects Mic. Antimatter Reactor. 13179_ U-05 Engineer builds a Wall. 13180_ R-10 Processor collects Adv. Remote Datajack. 13185_ P-80 Master resets P-80 Master, system corruption cleaned. 13186_ System Shield destroyed. 13192_ Mic. Antimatter Reactor destroyed. 13208_ P-80 Master resets P-80 Master, system corruption cleaned. 13211_ System corrupted: Component data lost. 13216_ ALERT: Rogue bot located, Programmers report to Research Zone 5W. 13221_ Med. Storage Unit destroyed. 13225_ P-80 Master IFF system glitched. 13227_ HNOPF6X777BG4HZO=SQ|CE/EXEWWCKM7U,RFH=E 13227_ P-80 Master resets P-80 Master, system corruption cleaned. [Achievement: Just Browsing] Map ----- +----------------------------------------------------+ | ????????? | | ??????????#######+### ######+##### ####+#### | | ??????????????? ???# #?# # ## # | | ?????????????! ?????# #?# # ## # | | ???????????? ???????# #?# """ # ^ ## # | | ????????????????????# #?# """ # ## # | | ????????????????????# ### """ # ## # | | ????????????????????# ### """ # ## # | | ????????????????????# ### """ # ## # | | ????????????????????# #?# # ## # | | ????????????????????# #?# ] # ## [ " | | ????????????????????# #?#####+#### ## ## | | ??????##?????######## ####### #### ## ## | | ?????? "# #? | | ?????? #####+##? | | ??????? #???# #?? | | ???????? #???# #?? | | ?????####/######/#############+######+####???# #?? | | ?????# # ## ! # ?????# #?? | | ?????# # ] ## # #### #?? | | ?????# # ] ## !p! # + #?? | | ????## # ! ## !g! # ######?? | | ????## * # ## !p #!! ?????????? | | ????## # ## #!] ???????????? | | ?????# # ##/* #!]?????????????? | | ?????# # [##@! #???????????????? | | ?????# " ##!%! #???????????????? | | ????##############################???Y???????????? | | ????##??###??###????###??????????????????????????? | | ?????????????????????????????????????????????????? | | ?????????????????????????????????????????????????? | | ?????????????????????????????????????????????????? | | ?????????????????????????????????????????????????? | | ?????????????????????????????????????????????????? | | ?????????????????????????????????????????????????? | | ?????????????????????????????????????????????????? | | ?????????????????????????????????????????????????? | | ?????????????????????????????????????????????????? | | ?????????????????????????????????????????????????? | | ?????????????????????????????????????????????????? | | ?????????????????????????????????????????????????? | | ?????????????????????????????????????????????????? | | ?????????????????????????????????????????????????? | | ?????????????????????????????????????????????????? | | ?????????????????????????????????????????????????? | | ?????????????????????????????????????????????????? | | ?????????????????????????????????????????????????? | | ?????????????????????????????????????????????????? | | ?????????????????????????????????????????????????? | | ?????????????????????????????????????????????????? | +----------------------------------------------------+ Best States ------------- Heat Dissipation 53 Energy Generation 64 Energy Capacity 250 Matter Stores 300 Matter Capacity 300 Sight Range 16 Robot Scan Range 14 Terrain Scan Range 16 Terrain Scan Density 10 ECM Strength 2 Cloak Strength 3 Additional Mass Support 12 Armor Coverage 225 Resistance: KI 25 Evasion (%) 65 Offensive Hacking 14 Defensive Hacking 10 Authchip Count 1 Item Schematics ----------------- Flight Unit | -8/Materials | Scanalyzed Sml. Storage Unit | -8/Materials | Scanalyzed Cld. VTOL Module | -7/Factory | Scanalyzed Signal Interpreter | -7/Factory | Hacked Adv. Heavy Treads | -5/Factory | Hacked Mic. Fission Core | -5/Factory | Scanalyzed Mic. Nuclear Core | -4/Factory | Scanalyzed Robot Schematics ------------------ None Fabricated ------------ Signal Interpreter | x2 | -7/Factory | Authchip Cld. VTOL Module | x1 | -5/Factory Alien Tech Used ----------------- None Achievements -------------- Dangerous Findings Just Browsing Challenges ------------ None Game ------ Seed SystemFireMegatreads Manual? 0 Play Time 02:19:55 Cumulative 16.4 hours Start 2024.01.18 @ 18:57:51 End 2024.01.18 @ 21:34:50 Sessions 3 Manual Loads 0 Difficulty Rogue Special Mode None Game No. 44 Rogue 44 Adventurer 0 Explorer 0 Win Type - Total 0 Types 0/0/0/0/0/0/0/0/0 Lore% 17 Gallery% 26 Achievement% 24 Wizard Run 0 Options --------- ASCII 0 Keyboard 0 Movement Mouse Keybinds 1 Fullscreen 2 Font 18/SmallcapsGlow Map View 76x50 Tactical HUD 1 Map Filters SHIFT_HUE(270)|BRIGHTNESS(75) Filters SHIFT_HUE(90)|BRIGHTNESS(125) Steam 1 RUN: 48eefa4b-8e44-49ba-aa37-645a16fed873